Cogmind - Beta 13 @@@ ROGUE MODE // 2024.04.13 @ 19:45:32 Player: JTMusky Result: Destroyed by G-34 Mercenary with Small Laser Performance ------------- Evolutions (0) 0 Regions Visited (1) 200 Robots Destroyed (20) 100 Value Destroyed (358) 358 Prototype IDs (2) 40 Alien Tech Used (0) 0 Bonus (0) 0 TOTAL SCORE: 698 Bonus ------- None Cogmind --------- Core Integrity 0/250 Matter 232/300 Energy 96/100 System Corruption 0% Temperature Cool (8) Movement Walking (120) Location -10/Materials Parts ------- > --- POWER (1) -------- (None) > --- PROPULSION (2) --- Aluminum Leg Aluminum Leg > --- UTILITY (2) ------ Small Storage Unit Hacking Suite > --- WEAPON (2) ------- Assault Rifle > --- INVENTORY (8) ---- Ion Engine Flight Unit Improved Terrain Scanner Seismic Detector Recalibrator EM Pulse Gun Assault Rifle Peak State ------------ > --- POWER ------------ Ion Engine > --- PROPULSION ------- Wheel Wheel > --- UTILITY ---------- Small Storage Unit Hacking Suite > --- WEAPON ----------- Assault Rifle Light Assault Rifle > --- INVENTORY -------- Light Ion Engine Aluminum Leg Aluminum Leg Wheel Compact Wheel Improved Terrain Scanner Seismic Detector EM Pulse Gun [Rating: 10] Favorites ----------- Power Ion Engine Engine Ion Engine Propulsion Wheel Leg Aluminum Leg Wheel Wheel Flight Unit Flight Unit Utility Small Storage Unit Device Improved Terrain Scanner Storage Small Storage Unit Hackware Hacking Suite Weapon Light Assault Rifle Ballistic Gun Light Assault Rifle Launcher Grenade Launcher Special Melee Weapon Datajack Build | -11 -10 ------- Run | Yrd Mat Slots Evolved . | . . Power . | . . Propulsion . | . . Utility . | . . Weapon . | . . Parts Attached 24 | 9 15 Power 3 | 1 2 Engine 3 | 1 2 Core . | . . Reactor . | . . Propulsion 7 | 3 4 Treads . | . . Leg 2 | . 2 Wheel 3 | 3 . Hover . | . . Flight 2 | . 2 Utility 4 | 3 1 Device 2 | 2 . Storage 1 | 1 . Processor . | . . Hackware 1 | . 1 Protection . | . . Artifact . | . . Weapon 10 | 2 8 Energy Gun . | . . Energy Cannon . | . . Ballistic Gun 8 | 2 6 Ballistic Cannon . | . . Launcher 1 | . 1 Special Weapon . | . . Impact Weapon . | . . Slashing Weapon . | . . Piercing Weapon . | . . Special Melee Weapon 1 | . 1 Unidentified Prototypes . | . . Parts Lost 7 | . 7 Power 1 | . 1 Propulsion 3 | . 3 Utility . | . . Weapon 3 | . 3 Highest Loss Streak 3 | . 3 To Critical Strikes . | . . Average Slot Usage (%) 91 | . 91 Engine 13 | . 13 Leg 11 | . 11 Wheel 8 | . 8 Flight 6 | . 6 Device 1 | . 1 Storage 14 | . 14 Hackware 12 | . 12 Ballistic Gun 17 | . 17 Special Melee Weapon 3 | . 3 Naked Turns . | . . Heaviest Build 15 | 14 15 Greatest Support 26 | 26 20 Greatest Overweight (x) 4 | . 4 Average Overweight (x) . | . . Largest Inventory Capacity 8 | 8 8 Average Capacity 7 | 7 8 Most Carried 8 | 7 8 Average Carried 6 | 4 7 Final Capacity 8 | 8 8 Final Carried 7 | 7 7 Class Distribution -------------------- 89% | Mutant 10% | Scavenger-Mutant Dominant Class ---------------- Mutant | -10/Materials Resources | -11 -10 ----------- Run | Yrd Mat Matter Collected 607 | 341 266 Remotely . | . . Salvage Created 490 | 115 375 Parts 42 | 14 28 Haulers Intercepted . | . . Recyclers Shooed 1 | . 1 Parts Field Recycled . | . . Retrieved Matter . | . . Parts Self-Destructed . | . . Prevented . | . . Kills | -11 -10 ------- Run | Yrd Mat Combat Hostiles Destroyed 12 | . 12 Guns 10 | . 10 AOE 2 | . 2 Classes Destroyed 5 | 1 4 Tunneler 6 | 6 . Mechanic 1 | . 1 Operator 1 | . 1 Swarmer 6 | . 6 Grunt 6 | . 6 Best Kill Streak 2 | 2 2 Combat Bots Only 2 | . 2 Max Kills in Single Turn 2 | 1 2 Gunslinging 1 | . 1 Exploded 1 | . 1 Melee . | . . Uniques/NPCs Destroyed . | . . Combat | -11 -10 -------- Run | Yrd Mat Hostile Shots Fired 162 | . 162 Missed 54 | . 54 Damage Taken 1062 | . 1062 Core 255 | . 255 Absorbed by Shields . | . . Core Remaining (%) 100 | 100 . Volleys Fired 89 | 13 76 Largest 2 | 2 2 Hottest 40 | 40 40 Shots Fired 154 | 26 128 Gun 150 | 26 124 Cannon . | . . Launcher 4 | . 4 Special . | . . Kinetic 150 | 26 124 Thermal . | . . Explosive 4 | . 4 Electromagnetic . | . . Robot Hit Streak 6 | 5 6 Robot Miss Streak 6 | 2 6 Penetration Max . | . . Secondary Targets 3 | . 3 Max Gunslinging Chain 1 | . 1 Shots Hit Robots 85 | 14 71 Core Hits 35 | 7 28 Critical Kills . | . . Critical Parts Destroyed 1 | 1 . Critical Strikes 1 | 1 . Destroy 1 | 1 . Melee Attacks 5 | . 5 Impact . | . . Slashing . | . . Piercing . | . . Sneak Attacks 1 | . 1 Combat Hostiles . | . . Follow-up Attacks . | . . Damage Inflicted 957 | 186 771 Guns 831 | 186 645 Cannons . | . . Explosions 126 | . 126 Melee . | . . Ramming . | . . Kinetic 831 | 186 645 Thermal . | . . Explosive 126 | . 126 Electromagnetic . | . . Impact . | . . Slashing . | . . Piercing . | . . Highest Corruption . | . . Average Corruption . | . . Corruption Purged . | . . Corruption Blocked . | . . Overload Shots . | . . Overflow Damage . | . . Projectiles . | . . Explosions . | . . Melee . | . . Knockbacks . | . . Impact . | . . Kinetic . | . . Secondary . | . . Self-Inflicted Damage 24 | . 24 Shots 1 | . 1 Rammed . | . . Targets Rammed . | . . Kicked . | . . Crushed . | . . Highest Temperature 42 | . 42 Average Temperature 18 | . 18 Received Heat Transfer 324 | . 324 Siege Activations . | . . Robots Corrupted . | . . Combat Hostiles . | . . Parts Fried . | . . Impact Corruptions . | . . Robots Melted . | . . Combat Hostiles . | . . Parts Melted . | . . Heat Transferred . | . . Parts Sabotaged . | . . Parts Stolen . | . . Parts Stripped . | . . Power Chain Reactions . | . . Alert | -11 -10 ------- Run | Yrd Mat Peak Influence 342 | 30 342 Initial 19 | . 19 Average 160 | 13 198 Maximum Alert Level 1 | . 1 Low Security (%) 54 | 100 42 Level 1 45 | . 57 Level 2 . | . . Level 3 . | . . Level 4 . | . . Level 5 . | . . High Security . | . . Max Security . | . . Squads Dispatched 4 | . 4 Investigation 2 | . 2 Extermination . | . . Reinforcement 2 | . 2 Assault . | . . Garrison . | . . Intercept . | . . Searches Triggered . | . . Construction Impeded . | . . Haulers Reinforced . | . . Active Scanning Responses . | . . Cargo Convoy Interrupts . | . . Stealth | -11 -10 --------- Run | Yrd Mat Distress Signals 5 | . 5 Communications Jammed . | . . Distress Signals . | . . Times Spotted 42 | . 42 Peak Tracking Total 6 | . 6 Tactical Retreats 6 | . 6 Traps | -11 -10 ------- Run | Yrd Mat Traps Triggered 1 | . 1 Indirectly . | . . Trap Hack Attempts . | . . Triggered . | . . Disarmed . | . . Reprogrammed 6 | . 6 Reused 1 | . 1 Traps Extracted . | . . Installed . | . . Triggered 1 | . 1 Machines | -11 -10 ---------- Run | Yrd Mat Machines Disabled 1 | . 1 Max in Single Turn 1 | . 1 Machines Repaired . | . . Machines Dismantled . | . . Machines Sabotaged . | . . Overloaded Fab Kills . | . . Hacking | -11 -10 --------- Run | Yrd Mat Machines Accessed 9 | . 9 Terminals 8 | . 8 Fabricators . | . . Repair Stations . | . . Recycling Units 1 | . 1 Scanalyzers . | . . Garrison Access . | . . Total Hacks 31 | . 31 Successful 17 | . 17 Failed 14 | . 14 Catastrophic 2 | . 2 Database Lockouts . | . . Manual 4 | . 4 Terminals 29 | . 29 Fabricators . | . . Repair Stations . | . . Recycling Units 2 | . 2 Scanalyzers . | . . Garrison Access . | . . Terminal Hacks 15 | . 15 Robot Analysis 1 | . 1 Prototype ID Bank 1 | . 1 Level Access Points 1 | . 1 Branch Access Points 1 | . 1 Terminal Index 1 | . 1 Alert Level 1 | . 1 Locate Traps 2 | . 2 Reprogram Traps 1 | . 1 Dispatch Records 1 | . 1 Security Status 1 | . 1 Recall Reinforcements 1 | . 1 Hauler Manifests 1 | . 1 Zone Layout 2 | . 2 Fabricator Hacks . | . . Repair Station Hacks . | . . Recycling Unit Hacks 2 | . 2 Report Inventory 1 | . 1 Retrieve Matter 1 | . 1 Scanalyzer . | . . Garrison Access Hacks . | . . Unauthorized Hacks . | . . Terminals . | . . Fabricators . | . . Repair Stations . | . . Recycling Units . | . . Scanalyzers . | . . Garrison Access . | . . Data Cores Recovered 1 | . 1 Used . | . . Hacking Detections 7 | . 7 Full Trace Events 1 | . 1 Feedback Events . | . . Feedback Blocked . | . . Robot Schematics Acquired . | . . Robots Built . | . . Authchips . | . . Time . | . . Total Robot Build Rating . | . . Part Schematics Acquired . | . . Parts Built . | . . Authchips . | . . Time . | . . Total Part Build Rating . | . . Parts Repaired . | . . Time . | . . Parts Recycled . | . . Recycled Matter . | . . Retrieved Matter 44 | . 44 Retrieved Components . | . . Parts Scanalyzed . | . . Part Schematics Acquired . | . . Parts Damaged . | . . Bothacking | -11 -10 ------------ Run | Yrd Mat Used RIF Installer . | . . Robots Hacked 2 | . 2 Non-combat 2 | . 2 Combat . | . . Robot Hacks Applied 2 | . 2 parse_system 1 | . 1 no_distress 1 | . 1 Relay Couplers Released . | . . Fabnet Peak Effective % . | . . Robots Rewired . | . . Allies Hacked . | . . Hacks Repelled . | . . Allies | -11 -10 -------- Run | Yrd Mat Total Allies . | . . Largest Group . | . . Highest-Rated Group . | . . Highest-Rated Ally . | . . Total Orders . | . . Ally Attacks . | . . Total Damage . | . . Kills . | . . Allies Corrupted . | . . Allies Melted . | . . Intel | -11 -10 ------- Run | Yrd Mat Robot Analysis Total 1 | . 1 Derelict Logs Recovered . | . . Drone Launches . | . . Drone Recoveries . | . . Exploration | -11 -10 ------------- Run | Yrd Mat Turns Passed 1162 | 240 922 Spaces Moved 1086 | 187 899 Core 14 | 1 13 Treads . | . . Legs 241 | . 241 Wheels 371 | 186 185 Hover . | . . Flight 460 | . 460 Fastest Speed 37 | 50 37 Average Speed 74 | 84 72 Slowest Speed 250 | 100 250 Overloaded Moves . | . . Propulsion Burnouts . | . . Robots Hopped 1 | . 1 Cave-ins Triggered . | . . Exploration Rate (%) 46 | 5 88 Regions Visited 1 Branch Regions . Pre-discovered Areas . | . . Known Exits Taken . | . . Unknown Exits Taken 1 | 1 . Scrap Searched . | . . Spaces Dug . | . . Terrain Destroyed 19 | . 19 Melee . | . . Projectile . | . . AOE 19 | . 19 Terrain Rammed . | . . Walls Destroyed . | . . Machines Disabled . | . . Actions | -11 -10 --------- Run | Yrd Mat Total 1296 | 241 1055 Wait 67 | 25 42 Move 1083 | 186 897 Hop 1 | . 1 Pick Up 16 | 8 8 Fast Attach 12 | 6 6 Attach 5 | 1 4 Detach 2 | . 2 Swap 7 | 2 5 Drop 9 | . 9 Fire 89 | 13 76 Melee 5 | . 5 Ram . | . . Kick . | . . Crush . | . . Escape Stasis . | . . Rewire . | . . Trap . | . . Miscellaneous . | . . Route ------- -11/Scrapyard -10/Materials (discovered 4 exits: *Mat x3 / *Min) History --------- Turn | Location | Event 45 | -11/Scrapyard | Discovered new exit (range 16) 241 | -11/Scrapyard | Entered Materials 303 | -10/Materials | Build established: Mutant 353 | -10/Materials | Identified exit to Mines 494 | -10/Materials | Discovered new exit (range 15) 558 | -10/Materials | Lost 3 parts (2n1w) 598 | -10/Materials | Discovered new exit (range 16) 658 | -10/Materials | Core integrity fell below 50% 903 | -10/Materials | Identified exit to Materials 1153 | -10/Materials | Core integrity fell below 20% 1163 | -10/Materials | Destroyed by G-34 Mercenary with Small Laser Last Messages --------------- 01030_ K-01 Serf cleans the Terminal. 01090_ Connecting with Terminal... 01111_ Jacked G-34 Mercenary... 01119_ Datajack destroyed. 01132_ W-16 Scout sends out distress signal. 01133_ K-01 Serf cleans the Terminal. 01142_ Terminal disabled. 01142_ Ion Engine destroyed. 01143_ K-01 Serf collects debris. 01144_ G-34 Mercenary destroyed. 01145_ K-01 Serf collects debris. 01148_ G-34 Mercenary destroyed. 01148_ K-01 Serf collects debris. 01150_ Grenade Launcher destroyed. 01153_ U-05 Engineer lays Concrete. 01154_ U-05 Engineer builds a Wall. 01155_ K-01 Serf collects debris. 01158_ U-05 Engineer builds a Wall. 01158_ K-01 Serf collects debris. 01162_ U-05 Engineer lays Concrete. Map ----- +----------------------------------------------------+ | | | | | | | | | ??????????????????????#############????####?###### | | ??????########????????# #???# ## | | ??????# #????????# """ #???# ## """ | | ??????# """ #????????# """ #???# ## """ | | ??????# """ !#????????# """ """ ##### ## """ | | ???#### """ #????????# """ T" # # ## | | ???# # =#????????# """ """ # < #? ?# | | ???# # #????????# # #? ?# | | ???# ##+##############+######+#### ###+######## | | ???# #[ # ## | | ???# # ! [ # + | | ?####+### # # ## #### | | ?#] # # # ## #??##############/# | | ?# + = /##### ######????# | [ | | ?# """ # *% g ###### | | ?# """ # % k g / """ " | | ?# """ # # [ # " # ######### """""" | | ?# # # #u u # #???????# """"" | | ######### # ## #//[[!!#???????# | | ## ## ##a = #//[[!!#???????######### | | """ ## ## ## % ########???????????????? | | "Y" # # ## @#??????????????????????? | | % + # ## #??????????????????????? | | # T # ## #??????????????????????? | | # ###### """ #??????????????????????? | | """ ##/########r """ #??????????????????????? | | """ # ## """ #?????????????######???? | | """ # """## #?????????????# #???? | | # """## #?????????????# #???? | | # """## [/ #####?????????# ##### | | ########] ## [/ !##?????????# # | | ???????####+###### [/ !#?????????# # """ | | ???????# # !#?????????# # """ | | ???????#[[ + !#?######### # """ | | ???????# ! # !#?#""|"!""# # | | ???????# [ ** ###### !##?# "|"!" # # | | ???????# [ % #????# ####### ##+####+## | | ???????# !""" #????# = | | ???????# """ #????# > * | | ???????# """ #????# [ | | ???????#####+############+####### # ###+## | | ????????# # #?######### # | | ????????# < * #*T #?????????# =!# | | ????????# [ [+ !!!#?????????# ^%# | | ????????# ##+########### !!!#?????????# ^ # | | ????????# # #??# !! #?????????# # | +----------------------------------------------------+ Best States ------------- Heat Dissipation 25 Energy Generation 10 Energy Capacity 250 Matter Stores 300 Matter Capacity 300 Sight Range 16 Terrain Scan Range 16 Terrain Scan Density 10 Evasion (%) 62 Offensive Hacking 10 Item Schematics ----------------- None Robot Schematics ------------------ None Fabricated ------------ Nothing Alien Tech Used ----------------- None Achievements -------------- GoHome() Shopping List Challenges ------------ None Game ------ Seed WeaponsXenonPod Manual? 0 Play Time 00:48:27 Cumulative 9.2 hours Start 2024.04.13 @ 08:44:33 End 2024.04.13 @ 19:45:32 Sessions 10 Manual Loads 0 Difficulty Rogue Special Mode None Game No. 10 Rogue 10 Adventurer 0 Explorer 0 Win Type - Total 0 Types 0/0/0/0/0/0/0/0/0 Lore% 5 Gallery% 7 Achievement% 6 Wizard Run 0 Options --------- Layout 2 ASCII 1 Keyboard 1 Movement Vi Keybinds 0 Fullscreen 2 Font 40/SmallcapsGlow Map View 50x44 Zoom Use 1% Tactical HUD 1 Map Filters NONE Filters NONE Steam 0 RUN: f86e8ab2-feba-450a-99bd-8a1d499c2d3e